fUSD/lending_fUSD_20260607
["ID","MTS","AMOUNT","RATE_DAILY","PERIOD"]
[424384316,1780825875000,-655.430247,0.00027397,2]
[424384314,1780825875000,-655.430247,0.00027397,2]
[424384323,1780825875000,-453.66558,0.00027397,2]
[424384322,1780825875000,-453.66558,0.00027397,2]
[424384324,1780825875000,-453.66558,0.00027397,2]
[424384327,1780825875000,-453.66558,0.00027397,2]
[424384325,1780825875000,-453.66558,0.00027397,2]
[424384328,1780825875000,-453.66558,0.00027397,2]
[424384326,1780825875000,-453.66558,0.00027397,2]
[424384298,1780825875000,-151.0,0.00027397,2]
[424384303,1780825875000,-655.430247,0.00027397,2]
[424384329,1780825875000,-453.66558,0.00027397,2]
[424384297,1780825875000,-151.0,0.00027397,2]
[424384299,1780825875000,-151.0,0.00027397,2]
[424384261,1780825875000,-165.47549758,0.00027397,7]
[424384266,1780825875000,-151.0,0.00027397,2]
[424384270,1780825875000,-167.485429,0.00027397,2]
[424384274,1780825875000,-167.485429,0.00027397,2]
[424384276,1780825875000,-167.485429,0.00027397,2]
[424384273,1780825875000,-167.485429,0.00027397,2]
[424384279,1780825875000,-167.485429,0.00027397,2]
[424384278,1780825875000,-167.485429,0.00027397,2]
[424384282,1780825875000,-167.485429,0.00027397,2]
[424384280,1780825875000,-167.485429,0.00027397,2]
[424384277,1780825875000,-167.485429,0.00027397,2]
[424384281,1780825875000,-167.485429,0.00027397,2]
[424384275,1780825875000,-167.485429,0.00027397,2]
[424384268,1780825875000,-151.0,0.00027397,2]
[424384285,1780825875000,-167.485429,0.00027397,2]
[424384283,1780825875000,-167.485429,0.00027397,2]
[424384295,1780825875000,-151.0,0.00027397,2]
[424384290,1780825875000,-528.84,0.00027397,2]
[424384296,1780825875000,-151.0,0.00027397,2]
[424384291,1780825875000,-151.0,0.00027397,2]
[424384294,1780825875000,-151.0,0.00027397,2]
[424384292,1780825875000,-151.0,0.00027397,2]
[424384286,1780825875000,-167.485429,0.00027397,2]
[424384289,1780825875000,-167.485421,0.00027397,2]
[424384288,1780825875000,-167.485429,0.00027397,2]
[424384287,1780825875000,-167.485429,0.00027397,2]
[424384284,1780825875000,-167.485429,0.00027397,2]
[424384293,1780825875000,-151.0,0.00027397,2]
[424384371,1780825876000,-534.694545,0.00027397,2]
[424384370,1780825876000,-534.694545,0.00027397,2]
[424384369,1780825876000,-534.694545,0.00027397,2]
[424384368,1780825876000,-534.694545,0.00027397,2]
[424384362,1780825876000,-534.694545,0.00027397,2]
[424384361,1780825876000,-547.521022,0.00027397,2]
[424384365,1780825876000,-534.694545,0.00027397,2]
[424384366,1780825876000,-534.694545,0.00027397,2]
[424384364,1780825876000,-534.694545,0.00027397,2]
[424384380,1780825876000,-534.694545,0.00027397,2]
[424384367,1780825876000,-534.694545,0.00027397,2]
[424384372,1780825876000,-534.694545,0.00027397,2]
[424384378,1780825876000,-534.694545,0.00027397,2]
[424384373,1780825876000,-534.694545,0.00027397,2]
[424384377,1780825876000,-534.694545,0.00027397,2]
[424384375,1780825876000,-534.694545,0.00027397,2]
[424384376,1780825876000,-534.694545,0.00027397,2]
[424384363,1780825876000,-534.694545,0.00027397,2]
[424384379,1780825876000,-534.694545,0.00027397,2]
[424384381,1780825876000,-534.69455,0.00027397,2]
[424384392,1780825876000,-500.0,0.000274,2]
[424384384,1780825876000,-165.78,0.000274,7]
[424384382,1780825876000,-300.0,0.00027397,2]
[424384391,1780825876000,-500.0,0.000274,2]
[424384383,1780825876000,-16314.85,0.00027397,10]
[424384393,1780825876000,-500.0,0.000274,2]
[424384374,1780825876000,-534.694545,0.00027397,2]
[424384360,1780825876000,-547.521017,0.00027397,2]
[424384352,1780825876000,-547.521017,0.00027397,2]
[424384359,1780825876000,-547.521017,0.00027397,2]
[424384385,1780825876000,-500.0,0.000274,2]
[424384333,1780825876000,-453.66558,0.00027397,2]
[424384332,1780825876000,-453.66558,0.00027397,2]
[424384330,1780825876000,-453.66558,0.00027397,2]
[424384331,1780825876000,-453.66558,0.00027397,2]
[424384335,1780825876000,-453.66558,0.00027397,2]
[424384336,1780825876000,-453.66558,0.00027397,2]
[424384334,1780825876000,-453.66558,0.00027397,2]
[424384342,1780825876000,-547.521017,0.00027397,2]
[424384341,1780825876000,-453.66559,0.00027397,2]
[424384344,1780825876000,-547.521017,0.00027397,2]
[424384339,1780825876000,-453.66558,0.00027397,2]
[424384338,1780825876000,-453.66558,0.00027397,2]
[424384337,1780825876000,-453.66558,0.00027397,2]
[424384340,1780825876000,-453.66558,0.00027397,2]
[424384343,1780825876000,-547.521017,0.00027397,2]
[424384347,1780825876000,-547.521017,0.00027397,2]
[424384350,1780825876000,-547.521017,0.00027397,2]
[424384348,1780825876000,-547.521017,0.00027397,2]
[424384346,1780825876000,-547.521017,0.00027397,2]
[424384353,1780825876000,-547.521017,0.00027397,2]
[424384355,1780825876000,-547.521017,0.00027397,2]
[424384351,1780825876000,-547.521017,0.00027397,2]
[424384357,1780825876000,-547.521017,0.00027397,2]
[424384349,1780825876000,-547.521017,0.00027397,2]
[424384356,1780825876000,-547.521017,0.00027397,2]
[424384354,1780825876000,-547.521017,0.00027397,2]
[424384358,1780825876000,-547.521017,0.00027397,2]
[424384345,1780825876000,-547.521017,0.00027397,2]
[424384387,1780825876000,-504.59,0.000274,2]
[424384386,1780825876000,-625.85,0.000274,2]
[424384428,1780825876000,-176.44847535,0.00027515,2]
[424384422,1780825876000,-166.82896044,0.00027515,2]
[424384426,1780825876000,-182.49239415,0.00027515,2]
[424384427,1780825876000,-155.64820613,0.00027515,2]
[424384425,1780825876000,-165.83057207,0.00027515,2]
[424384424,1780825876000,-169.49495466,0.00027515,2]
[424384429,1780825876000,-184.79708854,0.00027515,2]
[424384431,1780825876000,-161.24298311,0.00027515,2]
[424384440,1780825876000,-157.4995634,0.00027524,2]
[424384441,1780825876000,-167.29957349,0.00027524,2]
[424384436,1780825876000,-169.42432172,0.00027515,2]
[424384437,1780825876000,-643.87,0.0002752,7]
[424384435,1780825876000,-163.17708412,0.00027515,2]
[424384433,1780825876000,-155.72651823,0.00027515,2]
[424384432,1780825876000,-160.44381498,0.00027515,2]
[424384439,1780825876000,-172.4325787,0.00027524,2]
[424384442,1780825876000,-166.13301572,0.00027524,2]
[424384434,1780825876000,-211.98340138,0.00027515,2]
[424384438,1780825876000,-166.98194312,0.00027524,2]
[424384444,1780825876000,-170.28107321,0.0002753,2]
[424384443,1780825876000,-160.25861088,0.00027524,2]
[424384445,1780825876000,-4002.0,0.00027532,7]
[424384447,1780825876000,-159.07661634,0.00027546,2]
[424384446,1780825876000,-172.8543996,0.00027546,2]
[424384449,1780825876000,-670.66,0.00027547,7]
[424384448,1780825876000,-199.61919825,0.00027546,2]
[424384390,1780825876000,-500.0,0.000274,2]
[424384423,1780825876000,-198.76759323,0.00027515,2]
[424384418,1780825876000,-165.79617335,0.00027514,2]
[424384430,1780825876000,-217.51164373,0.00027515,2]
[424384421,1780825876000,-152.08186237,0.00027515,2]
[424384420,1780825876000,-167.83062278,0.00027515,2]
[424384389,1780825876000,-2570.26,0.000274,14]
[424384394,1780825876000,-500.0,0.000274,2]
[424384396,1780825876000,-500.0,0.000274,2]
[424384395,1780825876000,-500.0,0.000274,2]
[424384397,1780825876000,-500.0,0.000274,2]
[424384399,1780825876000,-500.0,0.000274,2]
[424384403,1780825876000,-500.0,0.000274,2]
[424384400,1780825876000,-500.0,0.000274,2]
[424384401,1780825876000,-500.0,0.000274,2]
[424384398,1780825876000,-500.0,0.000274,2]
[424384404,1780825876000,-500.0,0.000274,2]
[424384402,1780825876000,-500.0,0.000274,2]
[424384415,1780825876000,-175.55994706,0.00027507,2]
[424384388,1780825876000,-497.25,0.000274,2]
[424384416,1780825876000,-224.07209962,0.00027507,2]
[424384406,1780825876000,-519.72,0.000274,7]
[424384417,1780825876000,-500.0,0.00027509,2]
[424384414,1780825876000,-156.14902929,0.00027507,2]
[424384413,1780825876000,-197.10794886,0.00027507,2]
[424384409,1780825876000,-1000.0,0.000275,2]
[424384411,1780825876000,-500.0,0.000275,7]
[424384419,1780825876000,-187.98543256,0.00027514,2]
[424384408,1780825876000,-200.0,0.00027474,2]
[424384407,1780825876000,-14620.0,0.00027463,7]
[424384410,1780825876000,-204.78494136,0.000275,2]
[424384405,1780825876000,-700.0,0.000274,2]
[424384412,1780825876000,-191.26040848,0.00027501,2]
[424384488,1780825877000,-345.072,0.00028306,2]
[424384486,1780825877000,-1816.757,0.00028306,2]
[424384487,1780825877000,-1358.0,0.00028306,2]
[424384483,1780825877000,-232.40957034,0.00028219,30]
[424384490,1780825877000,-1227.0,0.00028306,2]
[424384482,1780825877000,-255.365,0.00028219,14]
[424384489,1780825877000,-382.0,0.00028306,2]
[424384491,1780825877000,-419.0,0.00028306,2]
[424384484,1780825877000,-200.0,0.00028247,2]
[424384481,1780825877000,-500.0,0.00028218,16]
[424384492,1780825877000,-240.39833671,0.00028311,2]
[424384485,1780825877000,-609.5,0.00028267,2]
[424384493,1780825877000,-624.55,0.00028346,7]
[424384500,1780825877000,-880.31,0.00028583,7]
[424384494,1780825877000,-152.0,0.00028389,32]
[424384503,1780825877000,-1771.25,0.0002863,30]
[424384496,1780825877000,-201.12091564,0.00028397,7]
[424384495,1780825877000,-165.47549758,0.00028397,7]
[424384499,1780825877000,-240.39833671,0.00028539,2]
[424384498,1780825877000,-1385.48,0.000285,7]
[424384502,1780825877000,-1060.73,0.00028606,7]
[424384501,1780825877000,-1292.0,0.000286,7]
[424384505,1780825877000,-1771.24,0.0002863,30]
[424384506,1780825877000,-1516.08,0.0002863,30]
[424384504,1780825877000,-1639.48,0.0002863,30]
[424384480,1780825877000,-152.0,0.00028119,31]
[424384497,1780825877000,-168.32,0.00028493,2]
[424384476,1780825877000,-600.0,0.00028,2]
[424384511,1780825877000,-152.0,0.00028659,33]
[424384472,1780825877000,-160.0,0.00028,2]
[424384453,1780825877000,-278.89148441,0.00027616,30]
[424384454,1780825877000,-240.39833671,0.00027626,2]
[424384450,1780825877000,-191.54250031,0.00027557,2]
[424384451,1780825877000,-152.0,0.00027579,29]
[424384452,1780825877000,-519.72,0.000276,7]
[424384455,1780825877000,-173.94,0.00027671,14]
[424384465,1780825877000,-240.39833671,0.00027854,2]
[424384467,1780825877000,-519.72,0.000279,7]
[424384466,1780825877000,-278.89148441,0.0002789,30]
[424384456,1780825877000,-173.94,0.00027671,14]
[424384463,1780825877000,-165.0,0.00027809,3]
[424384457,1780825877000,-173.95,0.00027671,14]
[424384458,1780825877000,-255.365,0.00027671,14]
[424384464,1780825877000,-152.0,0.00027849,30]
[424384459,1780825877000,-170.24,0.00027671,14]
[424384461,1780825877000,-170.25,0.00027671,14]
[424384460,1780825877000,-170.24,0.00027671,14]
[424384462,1780825877000,-163.974037,0.0002769,2]
[424384478,1780825877000,-987.22999999,0.00028082,2]
[424384479,1780825877000,-500.0,0.00028101,14]
[424384468,1780825877000,-698.67,0.00027951,7]
[424384470,1780825877000,-2570.26,0.00028,14]
[424384469,1780825877000,-1237.0,0.00028,60]
[424384474,1780825877000,-235.0,0.00028,21]
[424384477,1780825877000,-206.19460073,0.00028007,60]
[424384471,1780825877000,-351.7438885,0.00028,30]
[424384473,1780825877000,-325.0,0.00028,2]
[424384475,1780825877000,-544.32811394,0.00028,2]
[424384513,1780825877000,-609.21,0.00028667,7]
[424384523,1780825877000,-987.22999999,0.00028767,2]
[424384512,1780825877000,-609.24,0.00028666,7]
[424384550,1780825877000,-204.74784205,0.00028814,2]
[424384548,1780825877000,-208.37281154,0.00028814,2]
[424384544,1780825877000,-375.97086512,0.00028812,2]
[424384542,1780825877000,-423.96680277,0.00028805,2]
[424384541,1780825877000,-363.22968668,0.00028805,2]
[424384543,1780825877000,-448.14419923,0.00028805,2]
[424384545,1780825877000,-304.16372474,0.00028814,2]
[424384547,1780825877000,-224.97922659,0.00028814,2]
[424384546,1780825877000,-397.53518645,0.00028814,2]
[424384551,1780825877000,-210.55983083,0.00028814,2]
[424384553,1780825877000,-352.89695069,0.00028814,2]
[424384555,1780825877000,-369.59417707,0.00028814,2]
[424384539,1780825877000,-187.60029822,0.00028805,2]
[424384556,1780825877000,-169.26814008,0.00028814,2]
[424384554,1780825877000,-182.81348475,0.00028814,2]
[424384558,1780825877000,-174.45857574,0.00028814,2]
[424384559,1780825877000,-241.94397868,0.00028814,2]
[424384560,1780825877000,-176.3730243,0.00028814,2]
[424384561,1780825877000,-177.03617496,0.00028814,2]
[424384562,1780825877000,-165.40905576,0.00028814,2]
[424384564,1780825877000,-155.59953976,0.00028814,2]
[424384563,1780825877000,-322.48596623,0.00028814,2]
[424384568,1780825877000,-311.45303647,0.00028814,2]
[424384567,1780825877000,-175.79361143,0.00028814,2]
[424384565,1780825877000,-320.88762995,0.00028814,2]
[424384507,1780825877000,-609.24,0.00028635,2]
[424384557,1780825877000,-221.4511009,0.00028814,2]
[424384549,1780825877000,-364.98478829,0.00028814,2]
[424384552,1780825877000,-311.29641227,0.00028814,2]
[424384537,1780825877000,-351.11989412,0.00028805,2]
[424384540,1780825877000,-361.45095881,0.00028805,2]
[424384508,1780825877000,-609.21,0.00028636,2]
[424384514,1780825877000,-609.24,0.00028697,30]
[424384515,1780825877000,-609.21,0.00028698,30]
[424384509,1780825877000,-1771.25,0.00028653,7]
[424384516,1780825877000,-1639.49,0.00028726,30]
[424384566,1780825877000,-216.93496734,0.00028814,2]
[424384524,1780825877000,-255.365,0.00028767,14]
[424384521,1780825877000,-160.0,0.00028766,3]
[424384527,1780825877000,-1639.48,0.00028797,7]
[424384525,1780825877000,-609.24,0.00028792,30]
[424384526,1780825877000,-609.21,0.00028793,30]
[424384518,1780825877000,-609.21,0.0002873,2]
[424384510,1780825877000,-1771.24,0.00028653,7]
[424384520,1780825877000,-609.21,0.00028761,7]
[424384533,1780825877000,-312.29805859,0.00028805,2]
[424384517,1780825877000,-609.24,0.00028729,2]
[424384536,1780825877000,-356.87657444,0.00028805,2]
[424384538,1780825877000,-203.72842325,0.00028805,2]
[424384535,1780825877000,-181.46011857,0.00028805,2]
[424384534,1780825877000,-360.43200595,0.00028805,2]
[424384532,1780825877000,-2570.26,0.000288,14]
[424384529,1780825877000,-363.62105506,0.00028799,2]
[424384530,1780825877000,-394.21589771,0.00028799,2]
[424384531,1780825877000,-177.45678146,0.00028799,2]
[424384522,1780825877000,-188.0,0.00028766,3]
[424384519,1780825877000,-609.24,0.0002876,7]
[424384528,1780825877000,-1516.08,0.00028797,7]
[424384601,1780825878000,-6707.70343847,0.0002888,5]
[424384602,1780825878000,-609.24,0.00028886,30]
[424384593,1780825878000,-345.7087992,0.00028846,2]
[424384590,1780825878000,-320.51722177,0.00028823,2]
[424384592,1780825878000,-340.56214642,0.00028829,2]
[424384598,1780825878000,-609.21,0.00028855,7]
[424384597,1780825878000,-150.0,0.00028855,2]
[424384594,1780825878000,-318.15323269,0.00028846,2]
[424384595,1780825878000,-399.23839651,0.00028846,2]
[424384610,1780825878000,-1516.08,0.00028964,2]
[424384600,1780825878000,-383.08500061,0.00028857,2]
[424384599,1780825878000,-609.24,0.00028855,7]
[424384603,1780825878000,-609.21,0.00028887,30]
[424384605,1780825878000,-609.24,0.00028918,2]
[424384607,1780825878000,-609.24,0.00028949,7]
[424384608,1780825878000,-609.21,0.0002895,7]
[424384591,1780825878000,-609.21,0.00028824,2]
[424384613,1780825878000,-164.76840062,0.00028971,2]
[424384596,1780825878000,-500.0,0.00028855,2]
[424384584,1780825878000,-609.24,0.00028823,2]
[424384571,1780825878000,-241.51846674,0.00028814,2]
[424384586,1780825878000,-344.86515739,0.00028823,2]
[424384604,1780825878000,-609.21,0.00028918,2]
[424384574,1780825878000,-231.2602542,0.00028814,2]
[424384575,1780825878000,-200.07837176,0.00028814,2]
[424384569,1780825878000,-226.03919583,0.00028814,2]
[424384572,1780825878000,-178.72456236,0.00028814,2]
[424384570,1780825878000,-175.3621818,0.00028814,2]
[424384573,1780825878000,-178.56506239,0.00028814,2]
[424384576,1780825878000,-206.97317898,0.00028814,2]
[424384588,1780825878000,-334.59914699,0.00028823,2]
[424384578,1780825878000,-231.76889507,0.00028814,2]
[424384583,1780825878000,-212.0,0.0002882,30]
[424384580,1780825878000,-435.02328746,0.00028814,2]
[424384587,1780825878000,-314.99912681,0.00028823,2]
[424384577,1780825878000,-326.35416824,0.00028814,2]
[424384579,1780825878000,-338.84864344,0.00028814,2]
[424384589,1780825878000,-332.26603145,0.00028823,2]
[424384585,1780825878000,-333.96388624,0.00028823,2]
[424384582,1780825878000,-1771.24,0.00028819,2]
[424384581,1780825878000,-1771.25,0.00028819,2]
[424384614,1780825878000,-609.21,0.00028981,30]
[424384606,1780825878000,-152.0,0.00028929,34]
[424384612,1780825878000,-179.97120458,0.00028971,2]
[424384634,1780825878000,-238.2071608,0.00029,2]
[424384633,1780825878000,-519.72,0.00029,7]
[424384637,1780825878000,-200.0,0.00029,2]
[424384640,1780825878000,-200.0,0.00029,2]
[424384639,1780825878000,-200.0,0.00029,2]
[424384641,1780825878000,-200.0,0.00029,2]
[424384650,1780825878000,-213.84,0.00029,2]
[424384644,1780825878000,-200.0,0.00029,2]
[424384636,1780825878000,-200.0,0.00029,2]
[424384647,1780825878000,-200.0,0.00029,2]
[424384645,1780825878000,-200.0,0.00029,2]
[424384643,1780825878000,-200.0,0.00029,2]
[424384646,1780825878000,-200.0,0.00029,2]
[424384649,1780825878000,-200.0,0.00029,2]
[424384651,1780825878000,-5000.0,0.00029,2]
[424384653,1780825878000,-5000.0,0.00029,2]
[424384652,1780825878000,-5000.0,0.00029,2]
[424384654,1780825878000,-5000.0,0.00029,2]
[424384642,1780825878000,-200.0,0.00029,2]
[424384635,1780825878000,-200.0,0.00029,2]
[424384648,1780825878000,-200.0,0.00029,2]
[424384632,1780825878000,-2000.0,0.00029,3]
[424384630,1780825878000,-374.99,0.00029,2]
[424384611,1780825878000,-300.0,0.0002897,28]
[424384609,1780825878000,-1639.48,0.00028964,2]
[424384616,1780825878000,-1771.25,0.00028986,30]
[424384618,1780825878000,-327.94807399,0.00028995,2]
[424384621,1780825878000,-500.0,0.00029,2]
[424384615,1780825878000,-609.24,0.00028981,30]
[424384617,1780825878000,-1771.24,0.00028986,30]
[424384620,1780825878000,-1125.0,0.00029,2]
[424384619,1780825878000,-189.91,0.00029,2]
[424384623,1780825878000,-162.42,0.00029,2]
[424384624,1780825878000,-2097.35378201,0.00029,2]
[424384626,1780825878000,-1400.71,0.00029,2]
[424384625,1780825878000,-11183.58913113,0.00029,2]
[424384638,1780825878000,-200.0,0.00029,2]
[424384628,1780825878000,-511.37048438,0.00029,2]
[424384629,1780825878000,-374.99,0.00029,2]
[424384631,1780825878000,-375.01,0.00029,2]
[424384622,1780825878000,-4790.95220949,0.00029,30]
[424384627,1780825878000,-219.76923867,0.00029,2]
[424384697,1780825879000,-1516.08,0.00029132,30]
[424384694,1780825879000,-200.0,0.0002913,7]
[424384692,1780825879000,-213.88029387,0.0002913,7]
[424384690,1780825879000,-500.0,0.0002913,5]
[424384691,1780825879000,-300.0,0.0002913,20]
[424384687,1780825879000,-300.0,0.0002913,20]
[424384698,1780825879000,-609.21,0.00029138,7]
[424384688,1780825879000,-300.0,0.0002913,20]
[424384686,1780825879000,-609.24,0.00029107,2]
[424384693,1780825879000,-300.0,0.0002913,20]
[424384684,1780825879000,-609.24,0.00029075,30]
[424384689,1780825879000,-400.0,0.0002913,7]
[424384696,1780825879000,-1639.48,0.00029132,30]
[424384707,1780825879000,-609.44,0.00029232,7]
[424384700,1780825879000,-1771.25,0.00029152,7]
[424384699,1780825879000,-609.24,0.00029138,7]
[424384702,1780825879000,-609.24,0.00029169,30]
[424384701,1780825879000,-1771.24,0.00029152,7]
[424384703,1780825879000,-609.21,0.0002917,30]
[424384705,1780825879000,-609.21,0.00029201,2]
[424384704,1780825879000,-152.0,0.00029199,35]
[424384706,1780825879000,-609.24,0.00029201,2]
[424384709,1780825879000,-609.39,0.00029232,7]
[424384710,1780825879000,-378.0,0.00029245,30]
[424384714,1780825879000,-623.0,0.00029245,30]
[424384685,1780825879000,-609.21,0.00029107,2]
[424384695,1780825879000,-360.09346043,0.0002913,20]
[424384681,1780825879000,-609.24,0.00029044,7]
[424384655,1780825879000,-5091.1,0.00029,2]
[424384680,1780825879000,-609.21,0.00029044,7]
[424384661,1780825879000,-500.0,0.00029,2]
[424384660,1780825879000,-288.517656,0.00029,7]
[424384657,1780825879000,-401.88,0.00029,2]
[424384658,1780825879000,-151.0,0.00029,7]
[424384663,1780825879000,-500.0,0.00029,2]
[424384659,1780825879000,-479.03258016,0.00029,2]
[424384656,1780825879000,-1019.0,0.00029,2]
[424384708,1780825879000,-609.35,0.00029232,7]
[424384662,1780825879000,-500.0,0.00029,2]
[424384667,1780825879000,-220.0,0.00029,7]
[424384664,1780825879000,-500.0,0.00029,2]
[424384666,1780825879000,-500.0,0.00029,2]
[424384679,1780825879000,-514.95,0.00029024,2]
[424384668,1780825879000,-500.0,0.00029,2]
[424384669,1780825879000,-160.0,0.00029,4]
[424384672,1780825879000,-157.0,0.00029,4]
[424384670,1780825879000,-157.0,0.00029,4]
[424384671,1780825879000,-157.0,0.00029,4]
[424384674,1780825879000,-157.0,0.00029,4]
[424384675,1780825879000,-157.0,0.00029,4]
[424384673,1780825879000,-157.0,0.00029,4]
[424384677,1780825879000,-609.21,0.00029012,2]
[424384676,1780825879000,-151.0,0.00029007,60]
[424384678,1780825879000,-609.24,0.00029012,2]
[424384682,1780825879000,-500.0,0.00029065,17]
[424384683,1780825879000,-609.21,0.00029075,30]
[424384665,1780825879000,-527.18127303,0.00029,2]
[424384716,1780825879000,-529.0,0.00029275,30]
[424384756,1780825879000,-248.57911205,0.00029671,2]
[424384718,1780825879000,-1516.07,0.00029299,7]
[424384748,1780825879000,-409.4956841,0.0002967,2]
[424384747,1780825879000,-459.52186444,0.0002967,2]
[424384755,1780825879000,-353.92402828,0.00029671,2]
[424384754,1780825879000,-278.19677052,0.0002967,2]
[424384745,1780825879000,-179.97120458,0.00029666,2]
[424384746,1780825879000,-468.44708788,0.0002967,2]
[424384749,1780825879000,-540.64800893,0.0002967,2]
[424384751,1780825879000,-535.31486166,0.0002967,2]
[424384750,1780825879000,-362.92023714,0.0002967,2]
[424384753,1780825879000,-452.07839166,0.0002967,2]
[424384752,1780825879000,-526.67984119,0.0002967,2]
[424384757,1780825879000,-407.45684651,0.00029671,2]
[424384744,1780825879000,-354.91356291,0.00029665,2]
[424384768,1780825879000,-246.54757072,0.00029677,2]
[424384758,1780825879000,-493.84148626,0.00029671,2]
[424384766,1780825879000,-190.10280661,0.00029677,2]
[424384760,1780825879000,-542.17643821,0.00029671,2]
[424384761,1780825879000,-211.59713467,0.00029671,2]
[424384762,1780825879000,-210.92087098,0.00029671,2]
[424384764,1780825879000,-635.95020415,0.00029671,2]
[424384767,1780825879000,-190.57156092,0.00029677,2]
[424384765,1780825879000,-672.21629885,0.00029671,2]
[424384763,1780825879000,-544.84453001,0.00029671,2]
[424384770,1780825879000,-173.51621744,0.00029678,2]
[424384771,1780825879000,-563.95629768,0.00029678,2]
[424384712,1780825879000,-544.0,0.00029245,30]
[424384759,1780825879000,-375.20059644,0.00029671,2]
[424384743,1780825879000,-591.32384657,0.00029664,2]
[424384769,1780825879000,-573.78122545,0.00029677,2]
[424384736,1780825879000,-153.59267773,0.000295,3]
[424384737,1780825879000,-159.345149,0.000295,3]
[424384711,1780825879000,-198.0,0.00029245,30]
[424384715,1780825879000,-221.0,0.00029245,30]
[424384717,1780825879000,-432.0,0.00029275,30]
[424384719,1780825879000,-1639.48,0.00029299,7]
[424384723,1780825879000,-620.0,0.00029299,30]
[424384722,1780825879000,-670.0,0.00029299,30]
[424384721,1780825879000,-584.0,0.00029299,30]
[424384724,1780825879000,-390.0,0.00029299,30]
[424384727,1780825879000,-2570.26,0.000293,14]
[424384725,1780825879000,-296.0,0.00029299,30]
[424384729,1780825879000,-300.0,0.0002933,20]
[424384726,1780825879000,-376.0,0.00029299,30]
[424384713,1780825879000,-590.0,0.00029245,30]
[424384728,1780825879000,-179.97120458,0.00029319,2]
[424384720,1780825879000,-1516.08,0.00029299,7]
[424384738,1780825879000,-306.85592598,0.0002953,7]
[424384734,1780825879000,-1516.08,0.00029467,2]
[424384735,1780825879000,-152.0,0.00029469,36]
[424384733,1780825879000,-987.22999999,0.00029452,2]
[424384740,1780825879000,-150.0,0.00029534,2]
[424384732,1780825879000,-853.9,0.0002944,7]
[424384741,1780825879000,-1516.08,0.00029634,30]
[424384742,1780825879000,-545.43158259,0.00029664,2]
[424384730,1780825879000,-153.81002062,0.0002933,20]
[424384739,1780825879000,-1950.8662162,0.00029533,5]
[424384731,1780825879000,-6003.0,0.00029368,7]
[424384808,1780825880000,-433.86993468,0.00029679,2]
[424384811,1780825880000,-283.61108829,0.00029679,2]
[424384809,1780825880000,-351.58722287,0.00029679,2]
[424384804,1780825880000,-483.72894934,0.00029679,2]
[424384799,1780825880000,-166.70256976,0.00029679,2]
[424384810,1780825880000,-467.1795547,0.00029679,2]
[424384806,1780825880000,-311.19907951,0.00029679,2]
[424384805,1780825880000,-227.65132296,0.00029679,2]
[424384815,1780825880000,-165.03593474,0.00029679,2]
[424384802,1780825880000,-354.07234993,0.00029679,2]
[424384807,1780825880000,-481.33144493,0.00029679,2]
[424384812,1780825880000,-221.56875293,0.00029679,2]
[424384821,1780825880000,-400.15674353,0.00029679,2]
[424384813,1780825880000,-165.10417388,0.00029679,2]
[424384818,1780825880000,-357.44912473,0.00029679,2]
[424384816,1780825880000,-483.03693348,0.00029679,2]